[Event "FIDE World Rapid-ch Open 2018"]
[White "Potkin, Vladimir"]
[Black "Motylev, Alexander"]
[Site "St. Petersburg"]
[Round "9.12"]
[Annotator "ChessBase"]
[Result "1/2-1/2"]
[Date "2018.12.27"]
[WhiteElo "2597"]
[BlackElo "2644"]
[PlyCount "27"]
[TimeControl "900+10"]

1. e4 {[%emt 0:0:8]} e5 {[%emt 0:0:1]} 2. Nf3 {[%emt 0:0:3]} Nc6 {[%emt 0:0:10]
} 3. Bc4 {[%emt 0:0:29]} Nf6 {[%emt 0:0:8]} 4. d3 {[%emt 0:0:0]} Bc5 {[%emt 0:0:21]} 5. c3 {[%emt 0:0:8]} d6 {[%emt 0:0:19]} 6. a4 {[%emt 0:0:22]
} a6 {[%emt 0:0:9]} 7. 0-0 {[%emt 0:0:26]} Ba7 {[%emt 0:0:2]
} 8. Nbd2 {[%emt 0:0:37]} h6 {[%emt 0:0:9]} 9. b4 {[%emt 0:1:7]} Ne7 {[%emt 0:0:18]
} 10. Re1 {[%emt 0:0:26]} Ng6 {[%emt 0:0:34]} 11. Nf1 {[%emt 0:0:0]} 0-0 {[%emt 0:0:3]} 12. Ng3 {[%emt 0:0:26]} c6 {[%emt 0:0:1]} 13. Bb3 {[%emt 0:0:6]} Re8 {[%emt 0:0:30]} 14. d4 {[%emt 0:1:12]} 1/2-1/2

[Event "FIDE World Rapid-ch Open 2018"]
[White "Predke, Alexandr"]
[Black "Matlakov, Maxim"]
[Site "St. Petersburg"]
[Round "9.13"]
[Annotator "ChessBase"]
[Result "0-1"]
[Date "2018.12.27"]
[WhiteElo "2622"]
[BlackElo "2700"]
[PlyCount "108"]
[TimeControl "900+10"]

1. e4 {[%emt 0:0:0]} e5 {[%emt 0:0:0]} 2. Nc3 {[%emt 0:0:0]} Nf6 {[%emt 0:0:0]
} 3. g3 {[%emt 0:0:0]} Bc5 {[%emt 0:0:3]} 4. Bg2 {[%emt 0:0:0]} c6 {[%emt 0:0:31]} 5. Nge2 {[%emt 0:0:45]} d5 {[%emt 0:0:12]} 6. exd5 {[%emt 0:0:9]
} cxd5 {[%emt 0:0:2]} 7. d4 {[%emt 0:0:54]} exd4 {[%emt 0:0:0]} 8. Nxd4 {[%emt 0:0:2]} 0-0 {[%emt 0:0:4]} 9. 0-0 {[%emt 0:0:19]} Bg4 {[%emt 0:0:4]} 10. Qd3 {[%emt 0:0:59]} Bxd4 {[%emt 0:0:14]} 11. Qxd4 {[%emt 0:0:4]
} Nc6 {[%emt 0:0:1]} 12. Qf4 {[%emt 0:0:46]} Qd7 {[%emt 0:0:0]} 13. Re1 {[%emt 0:2:16]} Rfe8 {[%emt 0:1:11]} 14. Bd2 {[%emt 0:0:11]} Bf5 {[%emt 0:0:13]} 15. Nb5 {[%emt 0:1:7]} Bxc2 {[%emt 0:1:1]} 16. Bc3 {[%emt 0:0:8]
} Ne4 {[%emt 0:2:58]} 17. Rac1 {[%emt 0:4:6]} Nxc3 {[%emt 0:0:0]} 18. bxc3 {[%emt 0:1:14]} Rxe1+ {[%emt 0:1:23]} 19. Rxe1 {[%emt 0:0:0]} Rd8 {[%emt 0:0:33]} 20. h4 {[%emt 0:1:11]} h6 {[%emt 0:0:6]} 21. Kh2 {[%emt 0:0:58]
} Qf5 {[%emt 0:1:37]} 22. Qxf5 {[%emt 0:0:28]} Bxf5 {[%emt 0:0:0]} 23. Rd1 {[%emt 0:0:19]} Be6 {[%emt 0:1:7]} 24. Nc7 {[%emt 0:0:5]} Kf8 {[%emt 0:0:20]} 25. Nxd5 {[%emt 0:0:15]} Ne5 {[%emt 0:0:31]} 26. Rd4 {[%emt 0:0:17]
} Nc6 {[%emt 0:0:26]} 27. Rd1 {[%emt 0:0:7]} b6 {[%emt 0:0:0]} 28. a3 {[%emt 0:0:54]} Na5 {[%emt 0:0:59]} 29. Rd4 {[%emt 0:0:11]} Nb3 {[%emt 0:0:4]} 30. Rb4 {[%emt 0:0:45]} Bxd5 {[%emt 0:0:11]} 31. Bxd5 {[%emt 0:0:2]
} Rxd5 {[%emt 0:0:1]} 32. Rxb3 {[%emt 0:0:1]} Ke7 {[%emt 0:0:0]} 33. Rb4 {[%emt 0:0:39]} Rc5 {[%emt 0:0:23]} 34. Ra4 {[%emt 0:0:14]} a5 {[%emt 0:0:14]} 35. Re4+ {[%emt 0:0:5]} Kd6 {[%emt 0:0:2]} 36. c4 {[%emt 0:0:11]
} Re5 {[%emt 0:0:12]} 37. Rf4 {[%emt 0:0:17]} f6 {[%emt 0:0:0]} 38. Rd4+ {[%emt 0:0:1]} Kc5 {[%emt 0:0:29]} 39. Rd7 {[%emt 0:0:2]} Kxc4 {[%emt 0:0:4]} 40. Rxg7 {[%emt 0:0:3]} Kb3 {[%emt 0:0:10]} 41. Rg6 {[%emt 0:0:16]
} b5 {[%emt 0:0:32]} 42. Rxf6 {[%emt 0:0:13]} Kxa3 {[%emt 0:0:0]} 43. f4 {[%emt 0:0:3]} Re2+ {[%emt 0:0:4]} 44. Kh3 {[%emt 0:0:1]} b4 {[%emt 0:0:7]} 45. Rxh6 {[%emt 0:0:26]} b3 {[%emt 0:0:2]} 46. Rb6 {[%emt 0:0:1]
} b2 {[%emt 0:0:5]} 47. h5 {[%emt 0:0:7]} Re1 {[%emt 0:0:30]
} 48. f5 {[%emt 0:0:46]} b1=Q {[%emt 0:0:15]} 49. Rxb1 {[%emt 0:0:1]} Rxb1 {[%emt 0:0:2]} 50. g4 {[%emt 0:0:43]} a4 {[%emt 0:0:5]} 51. f6 {[%emt 0:0:0]} Kb4 {[%emt 0:1:6]} 52. h6 {[%emt 0:0:2]} a3 {[%emt 0:0:6]} 53. f7 {[%emt 0:0:6]} Rf1 {[%emt 0:0:5]} 54. h7 {[%emt 0:0:40]} a2 {[%emt 0:0:0]} 0-1

[Event "FIDE World Rapid-ch Open 2018"]
[White "Duda, Jan-Krzysztof"]
[Black "Khanin, Semen"]
[Site "St. Petersburg"]
[Round "9.14"]
[Annotator "RC"]
[Result "1/2-1/2"]
[Date "2018.12.27"]
[WhiteElo "2738"]
[BlackElo "2514"]
[PlyCount "53"]
[TimeControl "900+10"]

1. d4 {[%emt 0:0:0]} Nf6 {[%emt 0:0:0]} 2. Nf3 {[%emt 0:0:0]} g6 {[%emt 0:0:0]
} 3. Bg5 {[%emt 0:0:7]} Bg7 {[%emt 0:0:0]} 4. Nbd2 {[%emt 0:0:0]} 0-0 {[%emt 0:0:27]} 5. c3 {[%emt 0:0:9]} d6 {[%emt 0:0:6]} 6. e4 {[%emt 0:0:2]
} c5 {[%emt 0:0:8]} 7. dxc5 {[%emt 0:0:6]} dxc5 {[%emt 0:0:0]} 8. Bc4 {[%emt 0:0:22]} Nc6 {[%emt 0:0:6]} 9. Qe2 {[%emt 0:0:5]} h6 {[%emt 0:0:45]
} 10. Bxf6 {[%emt 0:0:9]} exf6 {[%emt 0:0:33]} 11. 0-0-0 {[%emt 0:0:48]
} Qc7 {[%emt 0:0:8]} 12. Qe3 {[%emt 0:0:36]} f5 {[%emt 0:0:0]} 13. Qxc5 {[%emt 0:0:54]} b6 {[%emt 0:0:2]} 14. Qe3 {[%emt 0:0:26]} Re8 {[%emt 0:0:54]} 15. Bd5 {[%emt 0:0:49]} Ba6 {[%emt 0:0:3]} 16. Kb1 {[%emt 0:1:3]
} f4 {[%emt 0:1:56]} 17. Qe1 {[%emt 0:0:1]} Bd3+ {[%emt 0:0:0]} 18. Ka1 {[%emt 0:0:2]} Nb4 {[%emt 0:2:45]} 19. cxb4 {[%emt 0:0:4]} Bxb2+ {[%emt 0:0:3]} 20. Kxb2 {[%emt 0:0:1]} Qc2+ {[%emt 0:0:2]} 21. Ka3 {[%emt 0:0:1]} a5 {[%emt 0:0:3]} 22. b5 {[%emt 0:6:38]} Qc5+ {[%emt 0:0:0]} 23. Kb2 {[%emt 0:0:1]} Qc2+ {[%emt 0:0:9]} 24. Ka3 {[%emt 0:0:2]} Qc5+ {[%emt 0:1:1]} 25. Kb2 {[%emt 0:0:1]} Qc2+ {[%emt 0:1:42]} 26. Ka3 {[%emt 0:0:2]
} Qc5+ {[%emt 0:0:1]} 27. Kb2 1/2-1/2

[Event "FIDE World Rapid-ch Open 2018"]
[White "Bazeev, German"]
[Black "Salem, A.R. Saleh"]
[Site "St. Petersburg"]
[Round "9.15"]
[Annotator "ChessBase"]
[Result "0-1"]
[Date "2018.12.27"]
[WhiteElo "2416"]
[BlackElo "2660"]
[PlyCount "70"]
[TimeControl "900+10"]

1. d4 {[%emt 0:0:0]} Nf6 {[%emt 0:0:0]} 2. Nf3 {[%emt 0:0:0]} g6 {[%emt 0:0:0]
} 3. c4 {[%emt 0:0:0]} Bg7 4. Nc3 d5 {[%emt 0:0:0]} 5. cxd5 {[%emt 0:0:1]
} Nxd5 {[%emt 0:0:0]} 6. Qa4+ {[%emt 0:0:1]} Bd7 {[%emt 0:0:0]} 7. Qa3 {[%emt 0:0:4]} Nxc3 {[%emt 0:0:33]} 8. bxc3 {[%emt 0:0:3]} 0-0 {[%emt 0:0:4]} 9. h4 {[%emt 0:0:7]} Bg4 {[%emt 0:2:16]} 10. h5 {[%emt 0:0:0]} Bxh5 {[%emt 0:4:28]} 11. Ne5 {[%emt 0:0:2]} c5 {[%emt 0:1:8]} 12. Qxc5 {[%emt 0:2:56]} Nd7 {[%emt 0:0:0]} 13. Nxd7 {[%emt 0:0:11]} Qxd7 {[%emt 0:0:1]
} 14. e3 {[%emt 0:4:30]} Rfc8 {[%emt 0:0:22]} 15. Qb4 {[%emt 0:0:0]} e5 {[%emt 0:1:18]} 16. Bd2 {[%emt 0:0:7]} Bg4 {[%emt 0:1:34]} 17. Bb5 {[%emt 0:0:55]} Qd8 {[%emt 0:1:25]} 18. Bd3 {[%emt 0:2:15]} h5 {[%emt 0:0:0]} 19. 0-0 {[%emt 0:0:37]} Rc7 {[%emt 0:0:22]} 20. f3 {[%emt 0:0:14]} Be6 {[%emt 0:0:6]} 21. Rfd1 {[%emt 0:0:14]} Rac8 {[%emt 0:0:13]} 22. Bf1 {[%emt 0:0:29]
} b6 {[%emt 0:0:53]} 23. Ba6 {[%emt 0:0:20]} Rb8 {[%emt 0:0:0]} 24. e4 {[%emt 0:0:1]} b5 {[%emt 0:0:44]} 25. d5 {[%emt 0:0:5]} Rc4 {[%emt 0:0:17]
} 26. Qa3 {[%emt 0:1:4]} Qb6+ {[%emt 0:0:42]} 27. Kf1 {[%emt 0:0:2]
} Bd7 {[%emt 0:0:16]} 28. Qe7 {[%emt 0:0:23]} Be8 {[%emt 0:0:0]} 29. d6 {[%emt 0:0:44]} Bf8 {[%emt 0:0:33]} 30. Qxe5 {[%emt 0:0:12]} Bxd6 {[%emt 0:0:3]} 31. Qf6 {[%emt 0:0:0]} Bf8 {[%emt 0:0:21]} 32. Qe5 {[%emt 0:0:27]
} Bg7 {[%emt 0:0:28]} 33. Qf4 {[%emt 0:0:8]} Rd8 {[%emt 0:0:0]} 34. Be3 {[%emt 0:2:11]} Rxd1+ {[%emt 0:0:1]} 35. Rxd1 {[%emt 0:0:1]} Qxa6 {[%emt 0:0:1]} 0-1

[Event "FIDE World Rapid-ch Open 2018"]
[White "Goganov, Aleksey"]
[Black "Zhigalko, Sergei"]
[Site "St. Petersburg"]
[Round "9.16"]
[Annotator "ChessBase"]
[Result "1/2-1/2"]
[Date "2018.12.27"]
[WhiteElo "2612"]
[BlackElo "2604"]
[PlyCount "38"]
[TimeControl "900+10"]

1. d4 {[%emt 0:0:0]} Nf6 {[%emt 0:0:0]} 2. c4 {[%emt 0:0:0]} e6 {[%emt 0:0:0]} 3. Nf3 {[%emt 0:0:0]} b6 {[%emt 0:0:0]} 4. g3 {[%emt 0:0:0]} Ba6 {[%emt 0:0:0]} 5. Qb3 {[%emt 0:0:0]} Nc6 {[%emt 0:0:10]} 6. Nbd2 {[%emt 0:0:0]} Na5 {[%emt 0:0:30]} 7. Qc3 {[%emt 0:0:8]} d5 {[%emt 0:2:1]} 8. c5 {[%emt 0:2:18]} Rc8 {[%emt 0:0:13]} 9. b4 {[%emt 0:0:38]} Nc4 {[%emt 0:0:0]} 10. Nxc4 {[%emt 0:0:58]} dxc4 {[%emt 0:3:0]} 11. Bg5 {[%emt 0:0:40]} Be7 {[%emt 0:0:17]} 12. Bxf6 {[%emt 0:0:17]} Bxf6 {[%emt 0:0:13]} 13. Bg2 {[%emt 0:0:42]
} Bb7 {[%emt 0:3:23]} 14. Qxc4 {[%emt 0:4:26]} Bxf3 {[%emt 0:0:0]} 15. Bxf3 {[%emt 0:0:3]} Qxd4 {[%emt 0:0:2]} 16. Qb5+ {[%emt 0:0:0]} Ke7 {[%emt 0:0:4]} 17. 0-0 {[%emt 0:0:43]} Rhd8 {[%emt 0:0:2]} 18. Rad1 {[%emt 0:1:7]} Qe5 {[%emt 0:0:33]} 19. Qa6 {[%emt 0:1:12]} bxc5 {[%emt 0:0:12]
} 1/2-1/2

[Event "FIDE World Rapid-ch Open 2018"]
[White "Nakamura, Hikaru"]
[Black "Bocharov, Ivan"]
[Site "St. Petersburg"]
[Round "9.17"]
[Annotator "RC"]
[Result "1-0"]
[Date "2018.12.27"]
[WhiteElo "2746"]
[BlackElo "2563"]
[PlyCount "119"]
[TimeControl "900+10"]

1. d4 {[%emt 0:0:0]} d5 {[%emt 0:0:0]} 2. c4 {[%emt 0:0:0]} c6 {[%emt 0:0:0]} 3. Nf3 {[%emt 0:0:0]} Nf6 {[%emt 0:0:0]} 4. e3 {[%emt 0:0:0]} Bf5 {[%emt 0:0:0]} 5. Nc3 {[%emt 0:0:1]} a6 {[%emt 0:0:0]} 6. Bd3 {[%emt 0:0:0]} Bg6 {[%emt 0:0:2]} 7. 0-0 {[%emt 0:0:17]} e6 {[%emt 0:0:2]} 8. Re1 {[%emt 0:0:18]} Nbd7 {[%emt 0:2:29]} 9. e4 {[%emt 0:0:12]} dxe4 {[%emt 0:0:0]} 10. Nxe4 {[%emt 0:0:2]} Nxe4 {[%emt 0:0:49]} 11. Bxe4 {[%emt 0:0:2]} Bxe4 {[%emt 0:1:31]} 12. Rxe4 {[%emt 0:0:2]} Nf6 {[%emt 0:0:4]} 13. Re2 {[%emt 0:0:18]
} Be7 {[%emt 0:0:10]} 14. Bf4 {[%emt 0:0:43]} 0-0 {[%emt 0:0:0]} 15. Qb3 {[%emt 0:0:2]} b5 {[%emt 0:0:50]} 16. Rc1 {[%emt 0:0:29]} Qd7 {[%emt 0:2:16]} 17. Ne5 {[%emt 0:3:40]} Qxd4 {[%emt 0:0:13]} 18. Qf3 {[%emt 0:0:30]
} Rac8 {[%emt 0:1:19]} 19. g3 {[%emt 0:3:42]} Qb6 {[%emt 0:0:0]} 20. Bg5 {[%emt 0:0:13]} Rfd8 {[%emt 0:0:18]} 21. cxb5 {[%emt 0:1:2]} Qxb5 {[%emt 0:0:13]} 22. Bxf6 {[%emt 0:0:33]} Bxf6 {[%emt 0:0:1]} 23. Nxc6 {[%emt 0:0:1]} Re8 {[%emt 0:1:46]} 24. b3 {[%emt 0:0:9]} Qd5 {[%emt 0:0:0]} 25. Qxd5 {[%emt 0:0:59]} exd5 {[%emt 0:0:1]} 26. Rxe8+ {[%emt 0:0:16]} Rxe8 {[%emt 0:0:1]} 27. Nb4 {[%emt 0:0:1]} d4 {[%emt 0:1:43]} 28. Nxa6 {[%emt 0:0:21]
} d3 {[%emt 0:0:5]} 29. Rd1 {[%emt 0:0:21]} Ra8 {[%emt 0:0:0]} 30. Nb4 {[%emt 0:0:12]} d2 {[%emt 0:0:4]} 31. Kf1 {[%emt 0:1:0]} Kf8 {[%emt 0:0:52]} 32. Ke2 {[%emt 0:0:22]} Be7 {[%emt 0:0:15]} 33. Nc6 {[%emt 0:0:50]
} Rxa2 {[%emt 0:0:11]} 34. Rxd2 {[%emt 0:0:1]} Rxd2+ {[%emt 0:0:0]} 35. Kxd2 {[%emt 0:0:3]} Bc5 {[%emt 0:0:0]} 36. f3 {[%emt 0:1:1]} Ke8 {[%emt 0:0:1]} 37. Kd3 {[%emt 0:0:6]} Kd7 {[%emt 0:0:9]} 38. Nd4 {[%emt 0:0:5]
} g6 {[%emt 0:0:49]} 39. Kc4 {[%emt 0:0:11]} Kd6 {[%emt 0:0:0]} 40. Nb5+ {[%emt 0:0:48]} Kc6 {[%emt 0:0:1]} 41. Nc3 {[%emt 0:0:1]} f5 {[%emt 0:0:38]} 42. Ne2 {[%emt 0:0:33]} Bf2 {[%emt 0:1:16]} 43. b4 {[%emt 0:0:0]} Kd6 {[%emt 0:0:1]} 44. Kd3 {[%emt 0:0:34]} h5 {[%emt 0:0:37]} 45. h3 {[%emt 0:1:8]} h4 {[%emt 0:0:15]} 46. g4 {[%emt 0:0:12]} fxg4 {[%emt 0:0:0]} 47. fxg4 {[%emt 0:0:1]} Ke5 {[%emt 0:0:1]} 48. b5 {[%emt 0:0:1]} g5 {[%emt 0:0:32]} 49. Kc4 {[%emt 0:0:28]} Ke4 {[%emt 0:0:9]} 50. Nc3+ {[%emt 0:0:2]
} Kf3 {[%emt 0:0:3]} 51. Kd5 {[%emt 0:0:18]} Ba7 {[%emt 0:0:0]} 52. Ne4 {[%emt 0:0:10]} Kf4 {[%emt 0:0:1]} 53. Nd6 {[%emt 0:0:12]} Kg3 {[%emt 0:0:3]} 54. Ke4 {[%emt 0:0:1]} Bc5 {[%emt 0:0:38]} 55. Nf7 {[%emt 0:0:5]
} Kxh3 {[%emt 0:0:7]} 56. Kf3 {[%emt 0:0:1]} Kh2 {[%emt 0:0:0]} 57. Nxg5 {[%emt 0:0:1]} Bb6 {[%emt 0:0:4]} 58. Ne6 {[%emt 0:0:17]} Kg1 {[%emt 0:0:2]} 59. Nf4 {[%emt 0:0:3]} Bd8 {[%emt 0:0:2]} 60. g5 {[%emt 0:0:4]
} 1-0

[Event "FIDE World Rapid-ch Open 2018"]
[White "Karjakin, Sergey"]
[Black "Savchenko, Boris"]
[Site "St. Petersburg"]
[Round "9.18"]
[Annotator "RC"]
[Result "1-0"]
[Date "2018.12.27"]
[WhiteElo "2753"]
[BlackElo "2562"]
[PlyCount "55"]
[TimeControl "900+10"]

1. e4 {[%emt 0:0:0]} c5 {[%emt 0:2:7]} 2. Nf3 {[%emt 0:0:0]} g6 {[%emt 0:0:0]} 3. d4 {[%emt 0:0:8]} cxd4 {[%emt 0:0:3]} 4. Nxd4 {[%emt 0:0:2]} Nc6 {[%emt 0:0:6]} 5. c4 {[%emt 0:0:8]} d6 {[%emt 0:0:18]} 6. Nc3 {[%emt 0:0:8]
} Bg7 {[%emt 0:0:3]} 7. Be3 {[%emt 0:0:4]} Qb6 {[%emt 0:0:0]} 8. Ndb5 {[%emt 0:1:16]} Bxc3+ {[%emt 0:0:4]} 9. Nxc3 {[%emt 0:1:51]} Qxb2 {[%emt 0:0:4]} 10. Nb5 {[%emt 0:1:19]} Kf8 {[%emt 0:0:12]} 11. Be2 {[%emt 0:1:25]
} Qg7 {[%emt 0:3:52]} 12. 0-0 {[%emt 0:1:24]} b6 {[%emt 0:0:0]} 13. e5 {[%emt 0:2:23]} Nxe5 {[%emt 0:2:5]} 14. Nxd6 {[%emt 0:0:20]} Be6 {[%emt 0:3:9]} 15. f4 {[%emt 0:1:14]} Rd8 {[%emt 0:1:33]} 16. Nf5 {[%emt 0:0:41]
} Rxd1 {[%emt 0:0:21]} 17. Raxd1 {[%emt 0:0:13]} Nc6 {[%emt 0:0:0]} 18. Nxg7 {[%emt 0:0:4]} Kxg7 {[%emt 0:0:2]} 19. Bf3 {[%emt 0:0:24]
} Nb4 {[%emt 0:0:36]} 20. Bd4+ {[%emt 0:1:13]} f6 {[%emt 0:0:2]} 21. c5 {[%emt 0:0:5]
} bxc5 {[%emt 0:1:4]} 22. Bxc5 {[%emt 0:0:2]} Nxa2 {[%emt 0:0:0]} 23. Rfe1 {[%emt 0:0:13]} Bf7 {[%emt 0:0:8]} 24. Rd7 {[%emt 0:0:21]} Nc3 {[%emt 0:0:24]} 25. Bxe7 {[%emt 0:0:31]} h5 {[%emt 0:0:10]} 26. Rxa7 {[%emt 0:1:24]
} Nd5 {[%emt 0:0:7]} 27. Bd6 {[%emt 0:0:35]} Nb6 {[%emt 0:0:0]} 28. Bc5 {[%emt 0:0:11]} 1-0

[Event "FIDE World Rapid-ch Open 2018"]
[White "Harikrishna, Pentala"]
[Black "Esipenko, Andrey"]
[Site "St. Petersburg"]
[Round "9.19"]
[Annotator "RC"]
[Result "1-0"]
[Date "2018.12.27"]
[WhiteElo "2725"]
[BlackElo "2593"]
[PlyCount "61"]
[TimeControl "900+10"]

1. e4 {[%emt 0:0:0]} c6 {[%emt 0:0:0]} 2. d4 {[%emt 0:0:0]} d5 {[%emt 0:0:0]} 3. e5 {[%emt 0:0:0]} Bf5 {[%emt 0:0:0]} 4. Nf3 {[%emt 0:0:0]} e6 {[%emt 0:0:0]} 5. Be2 {[%emt 0:0:0]} c5 {[%emt 0:0:0]} 6. Be3 {[%emt 0:0:0]} cxd4 {[%emt 0:0:36]} 7. Nxd4 {[%emt 0:0:2]} Ne7 {[%emt 0:0:2]} 8. 0-0 {[%emt 0:0:33]} Nbc6 {[%emt 0:0:9]} 9. Bb5 {[%emt 0:0:3]} a6 {[%emt 0:0:0]} 10. Bxc6+ {[%emt 0:0:18]} Nxc6 {[%emt 0:0:2]} 11. Nxf5 {[%emt 0:0:0]} exf5 {[%emt 0:0:1]} 12. c3 {[%emt 0:1:25]} Nxe5 {[%emt 0:2:1]} 13. Re1 {[%emt 0:1:27]} Be7 {[%emt 0:0:21]} 14. Bd4 {[%emt 0:0:2]} f6 {[%emt 0:0:0]} 15. Bxe5 {[%emt 0:0:8]} fxe5 {[%emt 0:0:2]} 16. Rxe5 {[%emt 0:0:0]} 0-0 {[%emt 0:1:4]} 17. Qb3 {[%emt 0:0:52]} Kh8 {[%emt 0:3:33]} 18. Rxd5 {[%emt 0:0:7]} Qc7 {[%emt 0:0:3]} 19. Nd2 {[%emt 0:0:6]} Rae8 {[%emt 0:0:1]
} 20. Nf3 {[%emt 0:0:48]} Bc5 {[%emt 0:0:16]} 21. Qc2 {[%emt 0:0:0]} g6 {[%emt 0:1:14]} 22. Qd2 {[%emt 0:0:53]} Rf7 {[%emt 0:0:52]} 23. Re1 {[%emt 0:0:35]} Rxe1+ {[%emt 0:1:5]} 24. Qxe1 {[%emt 0:0:3]} Re7 {[%emt 0:0:42]
} 25. Qd2 {[%emt 0:0:20]} b5 {[%emt 0:1:0]} 26. h4 {[%emt 0:0:0]} Kg7 {[%emt 0:1:46]} 27. h5 {[%emt 0:0:10]} Bb6 {[%emt 0:0:18]} 28. Rd6 {[%emt 0:1:34]} Bc5 {[%emt 0:0:41]} 29. Rd8 {[%emt 0:1:18]} Qc6 {[%emt 0:2:55]
} 30. h6+ {[%emt 0:0:43]} Kf6 {[%emt 0:0:2]} 31. b4 {[%emt 0:0:0]} 1-0

[Event "FIDE World Rapid-ch Open 2018"]
[White "Anand, Viswanathan"]
[Black "Mchedlishvili, Mikheil"]
[Site "St. Petersburg"]
[Round "9.20"]
[Annotator "ChessBase"]
[Result "1-0"]
[Date "2018.12.27"]
[WhiteElo "2773"]
[BlackElo "2610"]
[PlyCount "83"]
[TimeControl "900+10"]

1. e4 {[%emt 0:0:0]} c6 {[%emt 0:0:0]} 2. d4 {[%emt 0:0:0]} d5 {[%emt 0:0:0]} 3. e5 {[%emt 0:0:9]} Bf5 {[%emt 0:0:3]} 4. Nf3 {[%emt 0:0:7]} e6 {[%emt 0:0:8]} 5. Be2 {[%emt 0:0:5]} Ne7 {[%emt 0:0:15]} 6. c3 {[%emt 0:0:0]} Bg6 {[%emt 0:1:10]} 7. h4 {[%emt 0:0:6]} h6 {[%emt 0:0:41]} 8. h5 {[%emt 0:0:10]
} Bh7 {[%emt 0:0:2]} 9. a4 {[%emt 0:0:24]} Nd7 {[%emt 0:0:36]
} 10. a5 {[%emt 0:0:27]} a6 {[%emt 0:2:0]} 11. b4 {[%emt 0:0:9]} Nc8 {[%emt 0:0:1]
} 12. Nbd2 {[%emt 0:0:7]} Na7 {[%emt 0:0:6]} 13. Nb3 {[%emt 0:0:15]
} Nb5 {[%emt 0:0:7]} 14. Bd2 {[%emt 0:0:6]} Be7 {[%emt 0:0:0]} 15. Qc1 {[%emt 0:0:7]} f6 {[%emt 0:1:57]} 16. Bf4 {[%emt 0:0:32]} 0-0 {[%emt 0:0:34]} 17. exf6 {[%emt 0:0:51]} Nxf6 {[%emt 0:1:38]} 18. Qe3 {[%emt 0:1:42]
} Ne4 {[%emt 0:0:36]} 19. Bxb5 {[%emt 0:0:18]} axb5 {[%emt 0:0:0]} 20. Nc5 {[%emt 0:3:4]} Bxc5 {[%emt 0:0:18]} 21. dxc5 {[%emt 0:0:5]
} e5 {[%emt 0:0:32]} 22. Bxe5 {[%emt 0:0:10]} Qd7 {[%emt 0:0:31]} 23. Rh4 {[%emt 0:2:18]
} Rae8 {[%emt 0:0:13]} 24. Rf4 {[%emt 0:0:25]} Rxf4 {[%emt 0:0:0]} 25. Qxf4 {[%emt 0:0:7]} Nxc3 {[%emt 0:0:19]} 26. Qd4 {[%emt 0:0:34]
} Ne4 {[%emt 0:0:14]} 27. Kf1 {[%emt 0:0:11]} Ra8 {[%emt 0:1:8]} 28. Kg1 {[%emt 0:0:31]
} Qf7 {[%emt 0:0:41]} 29. Ra3 {[%emt 0:0:9]} Bf5 {[%emt 0:0:0]} 30. Qb2 {[%emt 0:1:10]} Kh7 {[%emt 0:0:11]} 31. Nd4 {[%emt 0:0:36]} Re8 {[%emt 0:0:17]} 32. Ne2 {[%emt 0:1:10]} Qe7 {[%emt 0:0:47]} 33. Bd4 {[%emt 0:0:13]
} Qg5 {[%emt 0:0:12]} 34. Re3 {[%emt 0:0:13]} Qxh5 {[%emt 0:0:0]} 35. f3 {[%emt 0:0:12]} Ng5 {[%emt 0:0:27]} 36. Ng3 {[%emt 0:0:7]} Qg6 {[%emt 0:0:38]} 37. Rxe8 {[%emt 0:0:12]} Qxe8 {[%emt 0:0:14]} 38. Nxf5 {[%emt 0:0:4]
} Qe1+ {[%emt 0:0:7]} 39. Kh2 {[%emt 0:0:2]} Ne6 {[%emt 0:0:0]} 40. Bc3 {[%emt 0:0:24]} Qd1 {[%emt 0:0:4]} 41. Qd2 {[%emt 0:0:13]} Qb1 {[%emt 0:0:6]} 42. Nd4 {[%emt 0:0:3]} 1-0

[Event "FIDE World Rapid-ch Open 2018"]
[White "Anton Guijarro, David"]
[Black "Inarkiev, Ernesto"]
[Site "St. Petersburg"]
[Round "9.21"]
[Annotator "ChessBase"]
[Result "1-0"]
[Date "2018.12.27"]
[WhiteElo "2642"]
[BlackElo "2693"]
[PlyCount "116"]
[TimeControl "900+10"]

1. e4 {[%emt 0:0:0]} e5 {[%emt 0:0:0]} 2. Nf3 {[%emt 0:0:0]} Nc6 {[%emt 0:0:0]
} 3. Bc4 {[%emt 0:0:0]} Nf6 {[%emt 0:0:0]} 4. Ng5 {[%emt 0:0:0]} d5 {[%emt 0:0:0]} 5. exd5 {[%emt 0:0:2]} Na5 {[%emt 0:0:0]} 6. Bb5+ {[%emt 0:0:4]} c6 {[%emt 0:0:0]} 7. dxc6 {[%emt 0:0:2]} bxc6 {[%emt 0:0:1]
} 8. Be2 {[%emt 0:0:3]} h6 {[%emt 0:0:43]} 9. Nh3 {[%emt 0:0:0]} Bd6 {[%emt 0:0:2]} 10. d3 {[%emt 0:0:11]} 0-0 {[%emt 0:0:11]} 11. 0-0 {[%emt 0:0:12]} Bc7 {[%emt 0:1:7]} 12. Nd2 {[%emt 0:1:19]} Qd6 {[%emt 0:0:0]} 13. Ne4 {[%emt 0:2:39]} Nxe4 {[%emt 0:2:3]} 14. dxe4 {[%emt 0:0:2]} Qg6 {[%emt 0:0:1]} 15. Qd3 {[%emt 0:0:24]} f5 {[%emt 0:0:36]} 16. Qg3 {[%emt 0:3:1]
} Qxg3 {[%emt 0:0:5]} 17. hxg3 {[%emt 0:0:2]} fxe4 {[%emt 0:0:0]} 18. g4 {[%emt 0:0:17]} Be6 {[%emt 0:1:9]} 19. b3 {[%emt 0:1:17]} Bb6 {[%emt 0:0:54]} 20. Be3 {[%emt 0:0:23]} Bd4 {[%emt 0:0:59]} 21. Rac1 {[%emt 0:0:3]
} Rad8 {[%emt 0:0:1]} 22. Rfd1 {[%emt 0:0:13]} Nb7 {[%emt 0:0:0]} 23. c3 {[%emt 0:0:39]} Bb6 {[%emt 0:0:19]} 24. Rxd8 {[%emt 0:0:57]} Rxd8 {[%emt 0:0:1]} 25. Rd1 {[%emt 0:0:2]} Rd5 {[%emt 0:1:25]} 26. g5 {[%emt 0:1:0]
} Kh7 {[%emt 0:3:54]} 27. gxh6 {[%emt 0:0:9]} gxh6 {[%emt 0:0:0]} 28. c4 {[%emt 0:0:51]} Rxd1+ {[%emt 0:0:55]} 29. Bxd1 {[%emt 0:0:2]
} Nc5 {[%emt 0:0:58]} 30. Bc2 {[%emt 0:0:40]} Bf5 {[%emt 0:0:0]} 31. f3 {[%emt 0:2:48]
} Bg6 {[%emt 0:0:23]} 32. f4 {[%emt 0:0:28]} Nxb3 {[%emt 0:0:0]} 33. Bxb6 {[%emt 0:0:8]} Na1 {[%emt 0:0:6]} 34. Bxe4 {[%emt 0:1:10]} Bxe4 {[%emt 0:0:37]} 35. Bxa7 {[%emt 0:0:2]} Kg6 {[%emt 0:0:29]} 36. fxe5 {[%emt 0:0:27]
} Kf5 {[%emt 0:0:1]} 37. Bb8 {[%emt 0:0:38]} Bb1 {[%emt 0:0:0]} 38. a4 {[%emt 0:0:12]} Ba2 {[%emt 0:0:31]} 39. g4+ {[%emt 0:0:20]} Ke6 {[%emt 0:0:23]} 40. Nf4+ {[%emt 0:0:5]} Kf7 {[%emt 0:0:3]} 41. c5 {[%emt 0:0:21]
} Nc2 {[%emt 0:0:2]} 42. a5 {[%emt 0:0:7]} Nb4 {[%emt 0:0:0]} 43. Kf2 {[%emt 0:0:13]} Bc4 {[%emt 0:0:9]} 44. Kg3 {[%emt 0:0:22]} Nd3 {[%emt 0:0:7]} 45. Nxd3 {[%emt 0:0:12]} Bxd3 {[%emt 0:0:1]} 46. Kh4 {[%emt 0:0:10]
} Kg6 {[%emt 0:0:31]} 47. Bc7 {[%emt 0:0:5]} Bc4 {[%emt 0:0:0]} 48. Bd6 {[%emt 0:0:3]} Kg7 {[%emt 0:0:7]} 49. Be7 {[%emt 0:0:16]} Kg6 {[%emt 0:0:8]} 50. Bf8 {[%emt 0:0:3]} Kh7 {[%emt 0:0:18]} 51. e6 {[%emt 0:0:0]} Kg6 {[%emt 0:0:17]} 52. e7 {[%emt 0:0:25]} Kf7 {[%emt 0:0:1]} 53. Kh5 {[%emt 0:0:9]} Be2 {[%emt 0:0:1]} 54. Kxh6 {[%emt 0:0:8]} Bxg4 {[%emt 0:0:0]
} 55. a6 {[%emt 0:0:1]} Bc8 {[%emt 0:0:1]} 56. a7 {[%emt 0:0:0]} Bb7 {[%emt 0:0:1]} 57. Kg5 {[%emt 0:0:7]} Ba8 {[%emt 0:0:58]} 58. Kf5 {[%emt 0:0:2]} Ke8 {[%emt 0:0:5]} 1-0